bitfinex-derivatives/quotes_SOLF0:USTF0_20260207
["timestamp","ask_amount","ask_price","bid_price","bid_amount"]
[1770452964621,42.41570974,85.023,84.971,44.64995475]
[1770452964622,42.41570974,85.021,84.953,44.64995475]
[1770452965018,42.41570974,85.021,84.967,10.5984]
[1770452965524,53.00830974,85.015,84.97,14.80353689]
[1770452966024,42.41570974,85.015,84.97,14.80353689]
[1770452966229,42.41570974,85.015,84.973,10.5977]
[1770452966417,42.41570974,85.015,84.97,14.80353689]
[1770452967620,42.41570974,85.012,84.953,44.64995475]
[1770452968329,42.41570974,84.998,84.921,44.64995475]
[1770452968532,42.41570974,84.998,84.93,14.80353689]
[1770452969028,42.41570974,84.99,84.941,10.6017]
[1770452969224,42.41570974,84.99,84.931,44.64995475]
[1770452970720,14.80353689,85.02,84.933,44.64995475]
[1770452970721,42.41570974,84.987,84.933,44.64995475]
[1770452971330,42.41570974,84.987,84.92,14.80353689]
[1770452971526,42.41570974,84.969,84.92,4.98840807]
[1770452971735,42.41570974,84.969,84.93,4.98840807]
[1770452972732,42.41570974,84.966,84.92,4.98840807]
[1770452972927,42.41570974,84.966,84.913,44.64995475]
[1770452972928,42.41570974,84.966,84.93,4.98840807]
[1770452976228,42.41570974,84.966,84.88,62.0]
[1770452976229,42.41570974,84.966,84.94,4.98840807]
[1770452976633,40.82974855,84.988,84.94,4.98840807]
[1770452976840,40.82974855,84.988,84.96,4.98840807]
[1770452977137,40.82974855,84.988,84.95,4.98840807]
[1770452977536,40.82974855,84.988,84.94,14.84149786]
[1770452979038,51.42564855,84.988,84.925,51.50935167]
[1770452979335,51.42564855,84.988,28.774,6.04899491]
[1770452979336,40.82974855,84.987,84.92,14.84149786]
[1770452979731,14.84149786,85.0,84.92,14.84149786]
[1770452979732,40.82974855,84.976,84.923,40.90575167]
[1770452980136,40.82974855,84.976,84.937,10.6021]
[1770452980331,40.82974855,84.976,84.94,14.84149786]
[1770452981036,40.82974855,84.976,84.941,10.6016]
[1770452981431,40.82974855,84.997,84.941,40.90575167]
[1770452983637,40.82974855,84.992,84.941,51.50735167]
[1770452983842,40.82974855,84.992,84.942,40.90575167]
[1770452984936,40.82974855,84.992,84.945,40.90575167]
[1770452985741,40.82974855,84.989,84.945,40.90575167]
[1770452986536,40.82974855,84.989,84.94,14.84149786]
[1770452986733,40.82974855,84.989,84.877,14.54615785]
[1770452986734,40.82974855,84.982,84.92,14.84149786]
[1770452986939,40.82974855,84.982,84.921,40.90575167]
[1770452987542,40.82974855,84.98,84.933,10.6026]
[1770452988138,10.5971,84.978,84.924,10.6037]
[1770452988346,40.82974855,84.977,84.924,10.6037]
[1770452989846,40.82974855,84.975,84.924,10.6037]
[1770452990145,40.82974855,84.975,84.93,10.603]
[1770452990447,40.82974855,84.973,84.925,40.90575167]
[1770452990743,40.82974855,84.973,84.927,10.6034]
[1770452991447,40.82974855,84.973,84.937,10.6021]
[1770452991641,40.82974855,84.973,84.925,40.90575167]
[1770452992837,40.82974855,84.973,84.929,10.6031]
[1770452993047,40.82974855,84.973,84.93,40.90575167]
[1770452993250,40.82974855,84.987,84.941,40.90575167]
[1770452994747,40.82974855,84.987,84.941,51.50745167]
[1770452997352,40.82974855,84.987,84.943,10.6014]
[1770452997557,40.82974855,84.987,84.95,4.98653843]
[1770452998459,45.81628698,84.98,84.921,40.90575167]
[1770452998759,45.81628698,84.98,84.93,4.98653843]
[1770452999264,40.82974855,84.98,84.94,4.98653843]
[1770452999448,40.82974855,84.979,84.94,4.98653843]
[1770453000654,40.82974855,84.993,84.96,4.98653843]
[1770453003059,40.82974855,84.993,84.95,4.98653843]
[1770453003263,40.82974855,84.993,84.942,51.50725167]
[1770453003462,40.82974855,84.985,84.942,51.50725167]
[1770453004457,4.98653843,84.99,84.93,4.98653843]
[1770453004458,40.82974855,84.98,84.93,4.98653843]
[1770453004760,40.82974855,84.98,84.93,45.8922901]
[1770453004954,10.67889315,85.025,84.7,115.60738069]
[1770453004955,40.82974855,84.978,84.95,4.98653843]
[1770453005355,40.82974855,84.978,84.932,40.90575167]
[1770453005752,40.82974855,84.978,84.937,10.6022]
[1770453005956,40.82974855,84.978,84.932,40.90575167]
[1770453006557,42.45369969,84.991,84.935,42.03504582]
[1770453007760,42.45369969,84.991,84.945,10.6011]
[1770453008153,42.45369969,84.991,84.923,42.03504582]
[1770453008964,14.84325686,85.01,84.929,10.6032]
[1770453008965,42.45369969,84.981,84.929,10.6032]
[1770453009162,42.45369969,84.981,84.929,52.63824582]
[1770453009365,42.45369969,84.981,84.93,40.86195317]
[1770453010063,42.45369969,84.981,84.932,40.86195317]
[1770453010756,42.45369969,84.981,84.933,10.6026]
[1770453011661,41.66347487,84.997,84.941,40.86195317]
[1770453013760,41.66347487,84.997,84.953,10.6001]
[1770453017666,41.66347487,84.997,84.94,14.84325686]
[1770453017667,41.66347487,84.992,84.929,40.86195317]
[1770453018265,41.66347487,84.983,84.929,40.86195317]
[1770453019768,41.66347487,84.977,84.93,10.603]
[1770453020275,41.66347487,84.952,84.896,10.6072]
[1770453020473,41.66347487,84.952,84.881,14.54615785]
[1770453020474,41.66347487,84.966,84.911,40.86195317]
[1770453020963,41.66347487,84.966,84.932,10.6028]
[1770453021168,41.66347487,84.998,84.932,10.6028]
[1770453022171,41.66347487,84.997,84.942,10.6015]
[1770453022772,41.66347487,84.995,84.942,10.6015]
[1770453025180,41.66347487,84.995,84.95,14.84325686]
[1770453026782,41.66347487,84.995,84.951,10.6004]
[1770453027477,41.66347487,85.017,84.96,40.86195317]
[1770453027678,41.66347487,85.017,84.97,14.84325686]
[1770453028677,41.66347487,85.017,84.98,10.5968]
[1770453029581,41.66347487,85.017,84.991,10.5953]
[1770453030588,41.66347487,85.017,84.98,4.98303416]
[1770453031584,41.66347487,85.017,84.99,4.98303416]
[1770453032288,41.66347487,85.017,84.98,4.98303416]
[1770453034585,41.66347487,85.017,84.99,4.98303416]
[1770453034890,10.5902,85.034,84.99,4.98303416]
[1770453034891,41.66347487,85.033,84.99,4.98303416]
[1770453035982,41.50946343,85.019,84.97,4.98303416]
[1770453036180,41.50946343,85.009,84.96,4.98303416]
[1770453036382,41.50946343,85.006,84.96,4.98303416]
[1770453036579,4.98303416,85.0,84.95,4.98303416]
[1770453036891,41.50946343,84.999,84.95,4.98303416]
[1770453037083,41.50946343,84.999,84.96,4.98303416]
[1770453041484,41.50946343,84.999,84.948,39.76520688]
[1770453042487,41.50946343,84.993,84.941,39.76520688]
[1770453042893,41.50946343,84.993,84.943,39.76520688]
[1770453044688,41.50946343,84.993,84.946,10.601]
[1770453044991,41.50946343,84.993,84.947,39.76520688]
[1770453046092,41.50946343,84.989,84.947,39.76520688]
[1770453047899,41.50946343,84.989,84.949,50.36580688]
[1770453048196,41.50946343,84.989,84.949,39.76520688]
[1770453049396,41.50946343,84.989,84.95,10.6005]
[1770453051090,41.50946343,84.989,84.95,50.36570688]
[1770453052196,41.50946343,84.989,84.951,39.76520688]
[1770453053697,10.5948,84.997,84.951,39.76520688]
[1770453053896,41.50946343,85.049,84.991,11.64810862]
[1770453054295,41.50946343,85.043,84.991,11.64810862]
[1770453054899,41.50946343,85.043,84.976,11.88876802]
[1770453056702,41.50946343,85.028,84.976,11.88876802]
[1770453057397,41.50946343,85.028,84.984,6.56053941]
[1770453057999,10.5879,85.052,84.984,6.56053941]
[1770453058208,41.50946343,85.084,85.02,14.8401833]
[1770453058603,41.50946343,85.082,85.017,6.55493264]
[1770453058804,41.50946343,85.069,85.004,8.3960071]
[1770453060701,41.50946343,85.069,85.02,14.8401833]
[1770453060903,41.50946343,85.069,85.0,14.8401833]
[1770453061202,41.50946343,85.069,85.001,7.60229762]
[1770453062714,41.50946343,85.059,84.98,14.8401833]
[1770453062917,41.50946343,85.079,85.02,14.8401833]
[1770453063516,41.50946343,85.069,85.006,10.5936]
[1770453063704,41.50946343,85.059,85.01,4.97725134]
[1770453064206,41.50946343,85.059,85.02,4.97725134]
[1770453064604,41.50946343,85.059,85.03,4.97725134]
[1770453064804,23.32326343,85.072,85.019,7.74662618]
[1770453065004,4.97725134,85.1,85.05,4.97725134]
[1770453066007,4.97725134,85.08,85.03,4.97725134]
[1770453066314,4.97725134,85.1,85.05,4.97725134]
[1770453066810,42.3745068,85.099,85.05,4.97725134]
[1770453067707,42.3745068,85.115,85.07,4.97725134]
[1770453069015,42.3745068,85.099,85.05,4.97725134]
[1770453070113,42.3745068,85.099,84.996,14.62849212]
[1770453070114,41.62971163,85.149,85.09,4.97725134]
[1770453070411,41.62971163,85.139,85.09,4.97725134]
[1770453071212,41.62971163,85.139,85.08,4.97725134]
[1770453071913,41.62971163,85.139,85.09,4.97725134]
[1770453072218,41.62971163,85.119,85.07,4.97725134]
[1770453072509,41.62971163,85.109,85.062,24.84605072]
[1770453073107,41.62971163,85.099,85.05,4.97725134]
[1770453073605,41.62971163,85.099,85.045,10.5887]
[1770453073606,4.97725134,85.09,85.042,25.26109797]
[1770453073806,41.62971163,85.099,85.05,4.97725134]
[1770453074316,21.48428808,85.185,84.981,14.62849212]
[1770453074317,41.62971163,85.158,85.09,4.97725134]
[1770453074613,41.62971163,85.139,85.081,24.96512285]
[1770453074808,41.62971163,85.139,85.1,4.97725134]
[1770453075116,41.62971163,85.139,85.09,4.97725134]
[1770453075413,41.62971163,85.139,85.081,24.96512285]
[1770453075606,41.62971163,85.137,85.081,24.96512285]
[1770453076503,41.62971163,85.133,85.081,24.96512285]
[1770453078008,41.62971163,85.133,85.084,23.89869519]
[1770453080112,35.29,85.199,85.05,14.7917453]
[1770453080113,41.62971163,85.185,85.12,14.7917453]
[1770453080310,10.5727,85.175,85.12,14.7917453]
[1770453080510,41.62971163,85.174,85.112,26.13527246]
[1770453080711,41.62971163,85.174,85.097,25.60855801]
[1770453081808,41.62971163,85.159,85.097,25.60855801]
[1770453082113,41.62971163,85.159,85.1,40.3640972]
[1770453082914,41.62971163,85.159,85.12,14.7917453]
[1770453083612,41.62971163,85.159,85.1,14.7917453]
[1770453083917,41.62971163,85.159,85.1,40.25073722]
[1770453084115,41.62971163,85.158,85.1,40.25073722]
[1770453084317,41.62971163,85.232,85.121,25.77045537]
[1770453084619,41.62971163,85.219,85.13,14.7917453]
[1770453084916,41.62971163,85.21,85.151,25.77045537]
[1770453086312,41.62971163,85.21,85.102,35.29]
[1770453086313,41.62971163,85.21,85.17,14.7917453]
[1770453086507,41.62971163,85.21,85.167,25.73583849]
[1770453087112,41.62971163,85.21,85.17,14.7917453]
[1770453088516,41.62971163,85.21,85.167,25.73583849]
[1770453088517,41.62971163,85.21,85.15,41.27646216]
[1770453088723,41.62971163,85.21,85.15,26.48471686]
[1770453088915,41.62971163,85.21,85.17,14.7917453]
[1770453089626,41.62971163,85.236,85.171,26.46762524]
[1770453090322,41.62971163,85.274,85.23,14.7917453]
[1770453091819,41.62971163,85.274,85.211,27.39941858]
[1770453092323,41.62971163,85.272,85.211,27.39941858]
[1770453092724,2.04121135,85.315,85.19,14.7917453]
[1770453092725,41.62971163,85.259,85.19,14.7917453]
[1770453092921,41.62971163,85.239,85.179,22.22073768]
[1770453093620,41.62971163,85.237,85.179,22.22073768]
[1770453094619,41.62971163,85.278,85.201,23.54450851]
[1770453094819,41.62971163,85.278,85.221,23.54450851]
[1770453095419,41.62971163,85.278,85.23,14.7917453]
[1770453095625,41.62971163,85.278,85.221,23.54450851]
[1770453097620,39.75337902,85.303,85.221,23.54450851]
[1770453097822,39.75337902,85.315,85.26,14.7917453]
[1770453098215,39.75337902,85.315,85.244,23.92035088]
[1770453098414,39.75337902,85.299,85.23,14.7917453]
[1770453098619,39.75337902,85.299,85.231,23.92035088]
[1770453098823,39.75337902,85.296,85.231,23.92035088]
[1770453099722,39.75337902,85.292,85.24,14.7917453]
[1770453099923,39.75337902,85.292,85.241,23.90569128]
[1770453101426,39.75337902,85.29,85.224,21.38137227]
[1770453101629,39.75337902,85.29,85.207,21.38137227]
[1770453102824,39.75337902,85.276,85.209,22.7013998]
[1770453103525,39.75337902,85.27,85.209,22.7013998]
[1770453104430,39.75337902,85.266,85.209,22.7013998]
[1770453105422,39.75337902,85.282,85.22,14.7917453]
[1770453105729,39.75337902,85.282,85.221,23.3666317]
[1770453105930,39.75337902,85.282,85.223,23.3666317]
[1770453106822,39.75337902,85.279,85.201,22.99926889]
[1770453108030,39.75337902,85.255,85.18,14.7917453]
[1770453108332,39.75337902,85.255,85.181,22.97309334]
[1770453108836,39.75337902,85.238,85.165,23.32536749]
[1770453109534,39.75337902,85.223,85.165,23.32536749]
[1770453109734,39.75337902,85.209,85.141,23.31237413]
[1770453110126,10.5689,85.205,85.143,23.31237413]
[1770453110329,39.75337902,85.204,85.143,23.31237413]
[1770453110636,10.5691,85.203,85.143,23.31237413]
[1770453110934,39.75337902,85.204,85.143,23.31237413]
[1770453111123,39.75337902,85.2,85.143,23.31237413]
[1770453112131,54.52142549,85.2,85.143,23.31237413]
[1770453112334,39.75337902,85.199,85.143,23.31237413]
[1770453113543,39.75337902,85.198,85.143,23.31237413]
[1770453113933,39.75337902,85.219,85.143,23.31237413]
[1770453114133,39.75337902,85.215,85.156,10.5749]
[1770453114639,39.75337902,85.215,85.143,23.31237413]
[1770453115039,39.75337902,85.215,85.14,14.76804647]
[1770453115040,39.75337902,85.212,85.146,23.73259142]
[1770453115541,39.75337902,85.202,85.146,23.73259142]
[1770453116225,39.75337902,85.202,85.14,14.76804647]
[1770453116226,39.75337902,85.187,85.114,23.70861218]
[1770453116430,39.75337902,85.179,85.114,23.70861218]
[1770453117034,39.75337902,85.166,85.114,23.70861218]
[1770453118936,39.75337902,85.166,85.115,10.5799]
[1770453119733,39.75337902,85.166,85.115,34.25281802]
[1770453120038,39.75337902,85.166,85.118,23.66166059]
[1770453120633,39.75337902,85.185,85.118,23.66166059]
[1770453120843,39.75337902,85.181,85.12,21.85199785]
[1770453121340,50.32537902,85.18,85.12,21.85199785]
[1770453121742,39.75337902,85.179,85.088,21.84085622]
[1770453121930,39.75337902,85.146,85.071,21.84085622]
[1770453122542,10.578,85.132,85.072,32.64022105]
[1770453122742,10.578,85.132,85.073,22.05502105]
[1770453123038,39.75337902,85.131,85.055,22.05502105]
[1770453123239,10.5801,85.115,85.055,22.05502105]
[1770453123543,39.75337902,85.114,85.055,22.05502105]
[1770453124135,39.75337902,85.112,85.055,22.05502105]
[1770453125243,39.75337902,85.129,85.071,23.22198638]
[1770453125840,40.41741947,85.127,85.071,23.22198638]
[1770453126442,14.76804647,85.14,85.054,22.63302629]
[1770453126443,40.41741947,85.114,85.054,22.63302629]
[1770453127145,40.41741947,85.114,85.07,14.76804647]
[1770453127441,10.5776,85.135,85.071,33.20804905]
[1770453127631,40.41741947,85.134,85.09,14.76804647]
[1770453127840,14.18038464,85.241,85.09,14.76804647]
[1770453127841,40.41741947,85.169,85.091,22.62264905]
[1770453128840,40.41741947,85.155,85.093,22.48126035]
[1770453129733,40.41741947,85.155,85.096,22.47419409]
[1770453130042,14.76804647,85.2,85.111,22.47419409]
[1770453130043,42.15524891,85.199,85.111,22.47419409]
[1770453130837,42.15524891,85.171,85.111,22.47419409]
[1770453131236,42.15524891,85.168,85.076,21.56643272]
[1770453131441,42.15524891,85.168,85.081,21.56643272]
[1770453132250,42.15524891,85.16,85.101,21.55685406]
[1770453133040,42.15524891,85.151,85.101,21.55685406]
[1770453133640,21.1396,85.198,85.101,21.55685406]
[1770453133641,42.15524891,85.189,85.101,21.55685406]
[1770453134847,52.72934891,85.163,85.103,22.51359412]
[1770453135746,52.72934891,85.163,85.107,10.581]
[1770453136148,52.72934891,85.163,85.108,22.50424485]
[1770453136449,42.15524891,85.189,85.128,22.26494904]
[1770453136657,42.15524891,85.189,85.1,14.76804647]
[1770453136658,42.15524891,85.189,85.113,22.26494904]
[1770453137144,10.5744,85.161,85.113,22.26494904]
[1770453137344,52.72964891,85.161,85.113,22.26494904]
[1770453137541,52.73034891,85.155,85.1,14.76804647]
[1770453137745,42.15524891,85.154,85.082,22.25583726]
[1770453138140,42.15524891,85.154,85.102,10.5815]
[1770453138739,42.15524891,85.152,85.102,10.5815]
[1770453139148,42.15524891,85.152,85.1,14.76804647]
[1770453139347,42.15524891,85.152,85.101,21.82687936]
[1770453140250,14.76804647,85.18,85.089,10.5832]
[1770453140251,42.15524891,85.144,85.089,10.5832]
[1770453140448,42.15524891,85.144,85.09,21.94637224]
[1770453140756,42.15524891,85.179,85.101,21.94637224]
[1770453140952,42.15524891,85.165,85.111,10.5804]
[1770453141348,42.15524891,85.165,85.101,21.94637224]
[1770453141349,42.15524891,85.165,85.118,10.5796]
[1770453141652,42.15524891,85.165,85.112,21.93770005]
[1770453141653,42.15524891,85.165,85.12,14.76804647]
[1770453142051,14.76804647,85.2,85.12,14.76804647]
[1770453142052,42.15524891,85.185,85.121,21.93770005]
[1770453142447,42.15524891,85.185,85.121,21.95246033]
[1770453143152,42.15524891,85.185,85.1,14.76804647]
[1770453143153,42.15524891,85.185,85.14,14.76804647]
[1770453143851,10.5715,85.184,85.132,21.94402473]
[1770453144656,42.15524891,85.185,85.135,10.5775]
[1770453144848,42.15524891,85.185,85.135,24.86655257]
[1770453145050,42.15524891,85.192,85.135,24.86655257]
[1770453146659,42.15524891,85.192,85.146,10.5761]
[1770453146853,42.15524891,85.192,85.135,24.86655257]
[1770453147347,42.15524891,85.182,85.135,24.86655257]
[1770453148553,42.15524891,85.166,85.117,10.5797]
[1770453149952,42.15524891,85.166,85.117,34.1414849]
[1770453150155,10.5725,85.176,85.123,10.5789]
[1770453150354,14.76804647,85.2,85.102,23.79549863]
[1770453150355,42.15524891,85.173,85.102,23.79549863]
[1770453150561,42.15524891,85.173,85.116,23.79549863]
[1770453151865,42.15524891,85.173,85.118,23.78760128]
[1770453152861,42.15524891,85.173,85.119,10.5794]
[1770453153063,42.15524891,85.173,85.119,34.78563085]
[1770453153263,42.15524891,85.173,85.11,14.76804647]
[1770453153264,42.15524891,85.173,85.12,24.19871559]
[1770453153465,42.15524891,85.169,85.12,24.19871559]
[1770453154166,42.15524891,85.169,85.131,10.578]
[1770453154367,42.15524891,85.185,85.131,10.578]
[1770453154769,10.5717,85.183,85.131,10.578]
[1770453155463,52.72694891,85.183,85.131,10.578]
[1770453156164,42.15524891,85.183,85.141,10.5767]
[1770453156567,39.26925412,85.229,85.151,24.27209376]
[1770453156768,39.26925412,85.229,85.171,24.27209376]
[1770453157070,39.26925412,85.229,85.192,10.5704]
[1770453158365,10.566,85.228,85.19,14.76804647]
[1770453158560,49.83525412,85.228,85.171,24.27209376]
[1770453159168,49.83595412,85.223,85.174,10.5726]
[1770453159374,39.26925412,85.222,85.151,23.95260739]
[1770453159880,10.5695,85.2,85.152,10.5753]
[1770453160372,10.5691,85.203,85.152,10.5753]
[1770453160674,49.83835412,85.203,85.152,10.5753]
[1770453161271,39.26925412,85.199,85.142,10.5766]
[1770453162073,39.26925412,85.199,85.149,10.5757]
[1770453162473,39.26925412,85.199,85.134,23.40983812]
[1770453162777,39.26925412,85.191,85.139,10.577]
[1770453163179,39.26925412,85.219,85.141,24.15308435]
[1770453163775,39.26925412,85.219,85.171,10.5729]
[1770453164472,39.26925412,85.219,85.179,10.572]
[1770453164776,39.26925412,85.219,85.161,24.25817261]
[1770453165675,10.5655,85.232,85.18,14.76804647]
[1770453166575,39.26925412,85.231,85.18,14.76804647]
[1770453166771,39.26925412,85.231,85.181,10.5717]
[1770453167472,39.26925412,85.231,85.18,14.76804647]
[1770453167679,39.26925412,85.231,85.161,23.69485036]
[1770453168073,10.5687,85.207,85.161,23.69485036]
[1770453168774,39.26925412,85.214,85.164,23.74873134]
[1770453169374,39.26925412,85.214,85.17,14.76086303]
[1770453170781,39.26925412,85.201,85.15,14.76086303]
[1770453170978,39.26925412,85.201,85.147,10.576]
[1770453171482,39.26925412,85.201,85.147,24.69231525]
[1770453171881,39.26925412,85.201,85.155,10.575]
[1770453172081,39.26925412,85.201,85.16,14.76086303]
[1770453172677,39.26925412,85.201,85.161,10.5743]
[1770453172878,39.26925412,85.201,85.16,14.76086303]
[1770453175078,39.26925412,85.217,85.164,23.97202796]
[1770453176177,39.26925412,85.217,85.117,14.34078473]
[1770453176178,39.26925412,85.214,85.15,23.96039149]
[1770453176370,39.26925412,85.214,85.151,23.77277817]
[1770453176578,39.26925412,85.214,85.17,14.76086303]
[1770453177478,39.26925412,85.214,85.172,10.5729]
[1770453177879,39.26925412,85.212,85.163,10.5739]
[1770453179776,10.5669,85.221,85.133,10.88859412]
[1770453179777,10.5669,85.221,85.171,23.83637025]
[1770453180574,39.26925412,85.22,85.171,23.83637025]
[1770453180778,39.26925412,85.209,85.156,24.19688851]
[1770453180974,39.26925412,85.209,85.14,14.76086303]
[1770453181373,39.26925412,85.191,85.14,14.76086303]
[1770453181578,39.26925412,85.191,85.124,24.19133058]
[1770453181778,39.26925412,85.189,85.12,14.76086303]
[1770453181978,39.26925412,85.165,85.08,25.64945715]
[1770453182282,39.26925412,85.159,85.081,24.18601518]
[1770453182587,14.76086303,85.16,85.081,24.18601518]
[1770453182588,39.26925412,85.149,85.081,24.18601518]
[1770453183684,39.26925412,85.147,85.081,24.18601518]
[1770453184184,39.26925412,85.145,85.084,24.05987273]
[1770453185691,39.26925412,85.145,85.088,10.5833]
[1770453185888,39.26925412,85.145,85.1,14.76086303]
[1770453187585,41.71374795,85.165,85.11,10.5806]
[1770453187789,41.71374795,85.165,85.1,14.76086303]
[1770453187984,43.18584175,85.159,85.084,24.14785545]
[1770453189292,43.18584175,85.15,85.086,24.04110436]
[1770453190386,43.18584175,85.134,85.08,14.76086303]
[1770453190792,43.18584175,85.112,85.053,10.5876]
[1770453191092,43.18584175,85.112,85.05,14.76086303]
[1770453191592,14.76086303,85.12,85.04,24.02899391]
[1770453191593,43.18584175,85.1,85.04,24.02899391]
[1770453191790,43.18584175,85.1,85.022,10.88859412]
[1770453191791,43.18584175,85.099,85.022,24.02416114]
[1770453192187,43.18584175,85.099,85.013,10.5927]
[1770453192387,43.18584175,85.099,85.03,14.76086303]
[1770453193183,43.18584175,85.089,85.017,10.5922]
[1770453193392,43.18584175,85.089,85.014,24.46267205]
[1770453194093,43.18584175,85.079,85.014,24.46267205]
[1770453195490,43.18584175,85.073,85.016,25.31444196]
[1770453195690,43.18584175,85.09,85.031,25.31444196]
[1770453196487,43.18584175,85.088,85.031,25.31444196]
[1770453196997,53.76944175,85.087,85.032,10.5903]
[1770453197191,43.18584175,85.087,85.032,10.5903]
[1770453197392,43.18584175,85.087,85.031,25.31444196]
[1770453197593,43.18584175,85.087,85.042,10.5891]
[1770453197998,43.18584175,85.087,85.032,10.5903]
[1770453198298,43.18584175,85.082,85.031,25.31444196]
[1770453200391,43.18584175,85.076,85.03,14.76086303]
[1770453203400,43.18584175,85.073,85.014,24.13588578]
[1770453204088,43.18584175,85.065,85.014,24.13588578]
[1770453204291,43.18584175,85.065,85.01,14.76086303]
[1770453204494,43.18584175,85.065,85.0,14.76086303]
[1770453204794,43.18584175,85.065,85.001,24.41731734]
[1770453205197,53.77244175,85.063,85.011,10.5929]
[1770453205393,43.18584175,85.063,85.011,10.5929]
[1770453205797,43.18584175,85.063,85.003,24.41318548]
[1770453207301,43.18584175,85.099,85.021,24.36092518]
[1770453208309,43.18584175,85.067,85.012,10.5928]
[1770453209504,43.18584175,85.053,85.0,14.76086303]
[1770453210704,43.18584175,85.048,85.0,14.76086303]
[1770453211704,43.18584175,85.044,85.0,14.76086303]
[1770453212105,43.18584175,85.044,84.98,14.76086303]
[1770453213106,43.18584175,85.044,84.981,24.56973062]
[1770453213700,43.18584175,85.044,85.0,14.76086303]
[1770453214211,43.18584175,85.044,85.0,25.35516303]
[1770453214611,43.18584175,85.042,84.981,24.56973062]
[1770453215009,43.18584175,85.042,84.98,14.76086303]
[1770453215814,39.07679585,85.04,84.981,24.75727648]
[1770453217612,39.07679585,85.034,84.981,24.75727648]
[1770453218611,39.07679585,85.034,84.98,14.76086303]
[1770453219214,39.07679585,85.029,84.984,10.5963]
[1770453220320,39.07679585,85.027,84.967,25.13167857]
[1770453221514,39.07679585,85.017,84.96,14.76086303]
[1770453222018,39.07679585,85.002,84.952,25.28679492]
[1770453223320,39.07679585,85.017,84.961,25.472812]
[1770453224025,39.07679585,85.003,84.96,14.76086303]
[1770453224319,14.76086303,85.05,84.961,25.46948935]
[1770453224320,39.07679585,85.029,84.961,25.46948935]
[1770453224722,39.07679585,85.018,84.963,25.60970269]
[1770453225222,39.07679585,85.018,84.969,10.5981]
[1770453228120,35.29,85.075,84.978,10.597]
[1770453228121,10.5895,85.039,84.978,10.597]
[1770453228311,14.76086303,85.07,84.98,14.76086303]
[1770453228618,39.07679585,85.038,84.981,25.31635107]
[1770453228819,39.07679585,85.038,84.98,14.76086303]
[1770453228820,39.07679585,85.038,84.984,35.91265107]
[1770453229321,39.07679585,85.038,85.0,14.76086303]
[1770453230617,39.07679585,85.054,85.001,26.06286481]
[1770453230924,39.07679585,85.068,85.02,14.76086303]
[1770453231222,39.07679585,85.068,85.02,40.82081159]
[1770453231523,39.07679585,85.068,85.02,40.86997597]
[1770453232219,39.07679585,85.068,85.021,10.5917]
[1770453232421,39.07679585,85.083,85.04,14.81002741]
[1770453233817,39.07679585,85.1,85.06,14.81002741]
[1770453234719,39.07679585,85.116,85.08,14.81002741]
[1770453234917,39.07679585,85.159,85.08,14.81002741]
[1770453235722,39.07679585,85.145,85.08,14.81002741]
[1770453236225,39.07679585,85.14,85.081,35.01754421]
[1770453236422,39.07679585,85.157,85.1,14.81002741]
[1770453236724,39.07679585,85.157,85.101,24.75226119]
[1770453237427,39.07679585,85.157,85.12,14.81002741]
[1770453238524,39.07679585,85.157,85.101,24.75226119]
[1770453239522,39.07679585,85.157,85.103,10.5814]
[1770453239916,39.07679585,85.157,85.1,14.81002741]
[1770453240517,39.07679585,85.157,84.953,35.85196184]
[1770453240518,14.81002741,85.15,85.051,25.16154113]
[1770453240725,39.07679585,85.149,85.06,14.81002741]
[1770453240929,39.07679585,85.129,85.051,25.16154113]
[1770453241824,39.07679585,85.108,85.051,25.16154113]
[1770453242224,14.81002741,85.13,85.04,179.37002741]
[1770453242225,39.07679585,85.106,85.04,179.37002741]
[1770453243726,39.07679585,85.1,85.04,179.37002741]
[1770453243928,39.07679585,85.1,85.024,25.2545105]
[1770453244316,39.07679585,85.1,84.968,329.403]
[1770453244317,39.07679585,85.1,85.041,25.25200091]
[1770453244629,39.07679585,85.1,85.04,14.81002741]
[1770453244827,39.07679585,85.094,85.04,14.81002741]
[1770453245329,39.07679585,85.094,85.028,25.58622159]
[1770453245534,39.07679585,85.092,85.028,25.58622159]
[1770453246823,40.27709365,85.084,85.028,25.58622159]
[1770453247535,40.27709365,85.084,85.034,10.5901]
[1770453247832,40.27709365,85.084,85.028,25.58622159]
[1770453248633,40.27709365,85.082,85.013,25.19623614]
[1770453248835,10.8042124,85.147,85.0,14.81002741]
[1770453248836,40.27709365,85.119,85.031,25.19623614]
[1770453249023,40.27709365,85.08,85.03,14.81002741]
[1770453251534,40.27709365,85.08,85.016,25.19623614]
[1770453251730,51.83188591,85.079,85.016,25.19623614]
[1770453251927,41.24738591,85.078,85.016,25.19623614]
[1770453252125,41.24738591,85.078,85.017,10.5921]
[1770453252931,41.24738591,85.076,85.017,10.5921]
[1770453253131,41.24738591,85.076,85.03,14.81002741]
[1770453253338,41.24738591,85.091,85.031,26.5738415]
[1770453253931,41.24738591,85.091,85.033,26.57369968]
[1770453255039,41.24738591,85.091,85.036,26.46089815]